[Event "NK 2022"]
[Site "Groningen, Netherlands"]
[Date "2022.12.28"]
[Round "12.1"]
[White "Kevlishvili, Robby"]
[Black "Warmerdam, Max"]
[Result "1/2-1/2"]
[TimeControl "40/90; 30 minutes + increment 30 seconds from start"]
[WhiteTitle "GM"]
[BlackTitle "GM"]
[WhiteFideId "1040634"]
[BlackFideId "1048104"]
[WhiteElo "2530"]
[BlackElo "2619"]

1. e4 {[%clk 00:25:18]} {[%emt 00:00:02]} c5 {[%clk 00:25:19]} {[%emt
00:00:01]} 2. Nf3 {[%clk 00:25:25]} {[%emt 00:00:03]} d6 {[%clk 00:25:28]}
{[%emt 00:00:01]} 3. d4 {[%clk 00:25:02]} {[%emt 00:00:32]} cxd4 {[%clk
00:25:37]} {[%emt 00:00:02]} 4. Nxd4 {[%clk 00:25:11]} {[%emt 00:00:02]} Nf6
{[%clk 00:25:45]} {[%emt 00:00:01]} 5. Nc3 {[%clk 00:25:19]} {[%emt 00:00:02]}
a6 {[%clk 00:25:54]} {[%emt 00:00:01]} 6. Be3 {[%clk 00:25:24]} {[%emt
00:00:04]} Ng4 {[%clk 00:26:02]} {[%emt 00:00:02]} 7. Bc1 {[%clk 00:25:15]}
{[%emt 00:00:19]} Nf6 {[%clk 00:26:11]} {[%emt 00:00:02]} 8. Be2 {[%clk
00:25:01]} {[%emt 00:00:23]} e6 {[%clk 00:26:08]} {[%emt 00:00:12]} 9. a4
{[%clk 00:25:02]} {[%emt 00:00:10]} b6 {[%clk 00:25:19]} {[%emt 00:00:59]} 10.
f4 {[%clk 00:24:38]} {[%emt 00:00:33]} Bb7 {[%clk 00:25:21]} {[%emt 00:00:09]}
11. Bf3 {[%clk 00:24:16]} {[%emt 00:00:32]} Qc7 {[%clk 00:24:49]} {[%emt
00:00:42]} 12. O-O {[%clk 00:24:18]} {[%emt 00:00:08]} Nbd7 {[%clk 00:24:55]}
{[%emt 00:00:04]} 13. Qe2 {[%clk 00:24:16]} {[%emt 00:00:12]} Be7 {[%clk
00:20:47]} {[%emt 00:04:19]} 14. e5 {[%clk 00:22:28]} {[%emt 00:01:58]} dxe5
{[%clk 00:20:53]} {[%emt 00:00:04]} 15. fxe5 {[%clk 00:22:17]} {[%emt
00:00:21]} Bc5 {[%clk 00:20:04]} {[%emt 00:00:59]} 16. Bxb7 {[%clk 00:21:27]}
{[%emt 00:01:00]} Bxd4+ {[%clk 00:19:40]} {[%emt 00:00:34]} 17. Be3 {[%clk
00:21:34]} {[%emt 00:00:03]} Bxe3+ {[%clk 00:19:13]} {[%emt 00:00:37]} 18. Qxe3
{[%clk 00:21:42]} {[%emt 00:00:02]} Qxb7 {[%clk 00:19:21]} {[%emt 00:00:02]} 19.
exf6 {[%clk 00:21:49]} {[%emt 00:00:03]} Nxf6 {[%clk 00:19:18]} {[%emt
00:00:13]} 20. Qg5 {[%clk 00:20:56]} {[%emt 00:01:02]} O-O-O {[%clk 00:19:17]}
{[%emt 00:00:11]} 21. Rf2 {[%clk 00:20:23]} {[%emt 00:00:43]} Rhg8 {[%clk
00:19:11]} {[%emt 00:00:17]} 22. Raf1 {[%clk 00:20:25]} {[%emt 00:00:08]} h6
{[%clk 00:18:31]} {[%emt 00:00:49]} 23. Qg3 {[%clk 00:20:30]} {[%emt 00:00:05]}
Qc7 {[%clk 00:17:48]} {[%emt 00:00:53]} 24. Qf3 {[%clk 00:20:16]} {[%emt
00:00:23]} Kb8 {[%clk 00:17:56]} {[%emt 00:00:02]} 25. Ne4 {[%clk 00:14:18]}
{[%emt 00:06:08]} Nxe4 {[%clk 00:17:56]} {[%emt 00:00:11]} 26. Qxe4 {[%clk
00:14:26]} {[%emt 00:00:02]} Rgf8 {[%clk 00:17:55]} {[%emt 00:00:11]} 27. b4
{[%clk 00:14:33]} {[%emt 00:00:03]} e5 {[%clk 00:16:13]} {[%emt 00:01:53]} 28.
c4 {[%clk 00:14:22]} {[%emt 00:00:21]} Rd4 {[%clk 00:16:17]} {[%emt 00:00:06]}
29. Qh7 {[%clk 00:13:54]} {[%emt 00:00:37]} f6 {[%clk 00:16:19]} {[%emt
00:00:08]} 30. c5 {[%clk 00:13:56]} {[%emt 00:00:09]} Rxb4 {[%clk 00:15:03]}
{[%emt 00:01:26]} 31. cxb6 {[%clk 00:14:04]} {[%emt 00:00:02]} Rxb6 {[%clk
00:15:11]} {[%emt 00:00:01]} 32. Rc2 {[%clk 00:14:03]} {[%emt 00:00:11]} Qb7
{[%clk 00:15:12]} {[%emt 00:00:09]} 33. Rfc1 {[%clk 00:14:03]} {[%emt
00:00:10]} Rd8 {[%clk 00:14:12]} {[%emt 00:01:10]} 34. h4 {[%clk 00:13:08]}
{[%emt 00:01:05]} Rb4 {[%clk 00:09:15]} {[%emt 00:05:07]} 35. Rc4 {[%clk
00:12:41]} {[%emt 00:00:38]} Rxc4 {[%clk 00:06:49]} {[%emt 00:02:36]} 36. Rxc4
{[%clk 00:12:48]} {[%emt 00:00:02]} Rd4 {[%clk 00:06:54]} {[%emt 00:00:05]} 37.
Qg8+ {[%clk 00:12:02]} {[%emt 00:00:56]} Ka7 {[%clk 00:07:03]} {[%emt
00:00:02]} 38. Rxd4 {[%clk 00:11:16]} {[%emt 00:00:56]} exd4 {[%clk 00:07:12]}
{[%emt 00:00:01]} 39. Qd8 {[%clk 00:11:00]} {[%emt 00:00:26]} Qc6 {[%clk
00:06:45]} {[%emt 00:00:38]} 40. a5 {[%clk 00:10:36]} {[%emt 00:00:35]} Qc1+
{[%clk 00:05:54]} {[%emt 00:01:00]} 41. Kh2 {[%clk 00:09:14]} {[%emt 00:01:31]}
Qc5 {[%clk 00:06:02]} {[%emt 00:00:02]} 42. Kh1 {[%clk 00:09:16]} {[%emt
00:00:08]} g5 {[%clk 00:04:41]} {[%emt 00:01:31]} 43. h5 {[%clk 00:07:49]}
{[%emt 00:01:38]} Kb7 {[%clk 00:04:05]} {[%emt 00:00:46]} 44. Qd7+ {[%clk
00:07:54]} {[%emt 00:00:04]} Kb8 {[%clk 00:04:07]} {[%emt 00:00:09]} 45. Qd8+
{[%clk 00:07:51]} {[%emt 00:00:13]} Kb7 {[%clk 00:04:16]} {[%emt 00:00:01]} 46.
Qd7+ {[%clk 00:07:58]} {[%emt 00:00:02]} Qc7 {[%clk 00:04:13]} {[%emt
00:00:14]} 47. Qd5+ {[%clk 00:08:02]} {[%emt 00:00:06]} Kb8 {[%clk 00:03:54]}
{[%emt 00:00:29]} 48. Kg1 {[%clk 00:06:42]} {[%emt 00:01:30]} Qc1+ {[%clk
00:03:34]} {[%emt 00:00:30]} 49. Kf2 {[%clk 00:06:41]} {[%emt 00:00:11]} Qe3+
{[%clk 00:03:22]} {[%emt 00:00:22]} 50. Kf1 {[%clk 00:06:50]} {[%emt 00:00:01]}
Qd3+ {[%clk 00:01:41]} {[%emt 00:01:51]} 51. Kg1 {[%clk 00:06:51]} {[%emt
00:00:09]} Qd1+ {[%clk 00:01:47]} {[%emt 00:00:04]} 52. Kf2 {[%clk 00:06:58]}
{[%emt 00:00:02]} Qc2+ {[%clk 00:01:53]} {[%emt 00:00:05]} 53. Kg1 {[%clk
00:07:01]} {[%emt 00:00:07]} Qc7 {[%clk 00:01:48]} {[%emt 00:00:15]} 54. Kf2
{[%clk 00:05:57]} {[%emt 00:01:14]} f5 {[%clk 00:00:53]} {[%emt 00:01:05]} 55.
Qb3+ {[%clk 00:03:08]} {[%emt 00:02:59]} Ka7 {[%clk 00:00:43]} {[%emt
00:00:21]} 56. Qd5 {[%clk 00:03:13]} {[%emt 00:00:04]} Kb8 {[%clk 00:00:37]}
{[%emt 00:00:16]} 57. Qb3+ {[%clk 00:03:21]} {[%emt 00:00:02]} Qb7 {[%emt
00:00:46]} 58. Qg8+ {[%clk 00:03:06]} Ka7 {[%clk 00:00:30]} {[%emt 00:00:06]}
59. Qc4 {[%clk 00:03:08]} {[%emt 00:00:08]} Qb2+ {[%clk 00:00:28]} {[%emt
00:00:13]} 60. Kg1 {[%clk 00:03:15]} {[%emt 00:00:03]} Qc3 {[%clk 00:00:19]}
{[%emt 00:00:19]} 61. Qf7+ {[%clk 00:03:18]} {[%emt 00:00:06]} Kb8 {[%clk
00:00:28]} {[%emt 00:00:02]} 62. Qf8+ {[%clk 00:03:03]} {[%emt 00:00:24]} Kc7
{[%clk 00:00:32]} {[%emt 00:00:02]} 63. Qg7+ {[%clk 00:03:01]} {[%emt
00:00:16]} Kb8 {[%clk 00:00:19]} {[%emt 00:00:24]} 64. Qf8+ {[%clk 00:03:07]}
{[%emt 00:00:04]} Kb7 {[%clk 00:00:24]} {[%emt 00:00:05]} 65. Qg7+ {[%clk
00:03:14]} {[%emt 00:00:02]} Qc7 {[%clk 00:00:27]} {[%emt 00:00:07]} 66. Qxd4
{[%clk 00:03:02]} {[%emt 00:00:22]} Qc1+ {[%clk 00:00:25]} {[%emt 00:00:12]} 67.
Kf2 {[%clk 00:03:11]} {[%emt 00:00:01]} Qc2+ {[%clk 00:00:34]} {[%emt
00:00:01]} 68. Kf1 {[%clk 00:03:12]} {[%emt 00:00:09]} Qb1+ {[%clk 00:00:37]}
{[%emt 00:00:08]} 69. Kf2 {[%clk 00:03:19]} {[%emt 00:00:03]} Qa2+ {[%clk
00:00:44]} {[%emt 00:00:03]} 70. Kf1 {[%clk 00:03:27]} {[%emt 00:00:02]} Qb1+
{[%clk 00:00:29]} {[%emt 00:00:25]} 71. Kf2 {[%clk 00:03:36]} {[%emt 00:00:01]}
Qa2+ {[%clk 00:00:38]} {[%emt 00:00:01]} 72. Kf1 {[%clk 00:03:44]} {[%emt
00:00:01]} Qe6 {[%clk 00:00:46]} {[%emt 00:00:02]} 73. Qc5 {[%clk 00:03:39]}
{[%emt 00:00:16]} f4 {[%clk 00:00:50]} {[%emt 00:00:06]} 74. Qc3 {[%clk
00:03:02]} {[%emt 00:00:47]} Qd6 {[%clk 00:00:30]} {[%emt 00:00:30]} 75. Kf2
{[%clk 00:02:56]} {[%emt 00:00:16]} Kb8 {[%clk 00:00:22]} {[%emt 00:00:18]} 76.
Kf3 {[%clk 00:02:43]} {[%emt 00:00:22]} Qd5+ {[%clk 00:00:31]} {[%emt
00:00:01]} 77. Kf2 {[%clk 00:02:35]} {[%emt 00:00:18]} Qd6 {[%clk 00:00:40]}
{[%emt 00:00:01]} 78. Kf3 {[%clk 00:02:44]} Qd5+ {[%clk 00:00:32]} {[%emt
00:00:18]} 79. Kf2 {[%clk 00:02:52]} {[%emt 00:00:02]} Qe6 {[%clk 00:00:41]}
{[%emt 00:00:02]} 80. Kf3 {[%clk 00:02:06]} {[%emt 00:00:56]} Kb7 {[%clk
00:00:47]} {[%emt 00:00:04]} 81. Qb4+ {[%clk 00:01:51]} {[%emt 00:00:26]} Kc7
{[%clk 00:00:50]} {[%emt 00:00:07]} 82. Kf2 {[%clk 00:01:58]} {[%emt 00:00:02]}
Qd6 {[%clk 00:00:19]} {[%emt 00:00:41]} 83. Qc4+ {[%clk 00:01:52]} {[%emt
00:00:17]} Kd7 {[%clk 00:00:29]} 84. Qf7+ {[%clk 00:01:53]} {[%emt 00:00:08]}
Kc6 {[%clk 00:00:37]} {[%emt 00:00:01]} 85. Qg6 {[%clk 00:01:39]} {[%emt
00:00:24]} Kc5 {[%clk 00:00:41]} {[%emt 00:00:07]} 86. Kf3 {[%clk 00:01:33]}
{[%emt 00:00:16]} Qc6+ {[%clk 00:00:48]} {[%emt 00:00:03]} 87. Kf2 {[%clk
00:01:26]} {[%emt 00:00:17]} Kb5 {[%clk 00:00:42]} {[%emt 00:00:16]} 88. Kf1
{[%clk 00:01:33]} {[%emt 00:00:03]} Kc5 {[%clk 00:00:36]} {[%emt 00:00:17]} 89.
Kf2 {[%clk 00:01:40]} {[%emt 00:00:03]} Kd5 {[%clk 00:00:35]} {[%emt 00:00:11]}
90. Qf7+ {[%clk 00:01:11]} {[%emt 00:00:39]} Qe6 {[%clk 00:00:36]} {[%emt
00:00:09]} 91. Qb7+ {[%clk 00:00:54]} {[%emt 00:00:26]} Kc5 {[%clk 00:00:44]}
{[%emt 00:00:02]} 92. Kg1 {[%clk 00:00:37]} {[%emt 00:00:27]} Qd6 {[%clk
00:00:25]} {[%emt 00:00:29]} 93. Qb1 {[%clk 00:00:29]} {[%emt 00:00:17]} g4
{[%clk 00:00:25]} {[%emt 00:00:10]} 94. Qf5+ {[%clk 00:00:31]} {[%emt
00:00:08]} Kb4 {[%clk 00:00:27]} {[%emt 00:00:08]} 95. Qxg4 {[%clk 00:00:25]}
{[%emt 00:00:17]} Kxa5 {[%clk 00:00:26]} {[%emt 00:00:12]} 96. Qg6 {[%clk
00:00:34]} Qb6+ {[%clk 00:00:30]} {[%emt 00:00:06]} 97. Kh2 {[%clk 00:00:33]}
{[%emt 00:00:11]} Kb5 {[%clk 00:00:34]} {[%emt 00:00:05]} 98. Qf5+ {[%clk
00:00:40]} {[%emt 00:00:02]} Kc6 {[%clk 00:00:36]} {[%emt 00:00:09]} 99. Qf6+
{[%clk 00:00:23]} {[%emt 00:00:27]} Kb7 {[%clk 00:00:37]} {[%emt 00:00:09]} 100.
Qg7+ {[%clk 00:00:32]} Qc7 {[%clk 00:00:25]} {[%emt 00:00:22]} 101. Qxh6 {[%clk
00:00:35]} {[%emt 00:00:07]} f3+ {[%clk 00:00:33]} {[%emt 00:00:02]} 102. Kg1
{[%clk 00:00:40]} {[%emt 00:00:05]} Qc5+ {[%clk 00:00:41]} {[%emt 00:00:02]}
103. Kf1 {[%clk 00:00:33]} {[%emt 00:00:18]} Qc4+ {[%clk 00:00:49]} {[%emt
00:00:02]} 104. Kg1 {[%clk 00:00:27]} {[%emt 00:00:16]} Qd4+ {[%clk 00:00:56]}
{[%emt 00:00:03]} 105. Kh2 {[%clk 00:00:14]} {[%emt 00:00:22]} Qh4+ {[%clk
00:01:04]} {[%emt 00:00:01]} 106. Kg1 {[%clk 00:00:23]} {[%emt 00:00:01]} Qd4+
{[%clk 00:01:09]} {[%emt 00:00:05]} 107. Kh2 {[%clk 00:00:32]} {[%emt
00:00:01]} f2 {[%clk 00:00:30]} {[%emt 00:00:50]} 108. Qh7+ {[%clk 00:00:36]}
{[%emt 00:00:06]} Kc6 {[%clk 00:00:39]} {[%emt 00:00:01]} 109. Qc2+ {[%clk
00:00:30]} {[%emt 00:00:15]} Kd5 {[%clk 00:00:36]} {[%emt 00:00:13]} 110. Qa2+
{[%clk 00:00:29]} {[%emt 00:00:12]} Ke5 {[%clk 00:00:34]} {[%emt 00:00:12]} 111.
Qa5+ {[%clk 00:00:31]} {[%emt 00:00:08]} Ke4 {[%clk 00:00:22]} {[%emt
00:00:22]} 112. Qxa6 {[%clk 00:00:30]} {[%emt 00:00:11]} Qe5+ {[%clk 00:00:26]}
{[%emt 00:00:06]} 113. g3 {[%clk 00:00:28]} {[%emt 00:00:12]} Kf3 {[%clk
00:00:18]} {[%emt 00:00:18]} 114. Qd3+ {[%clk 00:00:34]} {[%emt 00:00:04]} Qe3
{[%clk 00:00:18]} {[%emt 00:00:10]} 115. Qd1+ {[%clk 00:00:41]} {[%emt
00:00:03]} Qe2 {[%clk 00:00:20]} {[%emt 00:00:08]} 116. Qd5+ {[%clk 00:00:45]}
{[%emt 00:00:05]} Ke3 {[%clk 00:00:26]} {[%emt 00:00:05]} 117. Qe5+ {[%clk
00:00:52]} {[%emt 00:00:03]} Kd2 {[%clk 00:00:32]} {[%emt 00:00:03]} 118. Qb2+
{[%clk 00:00:53]} {[%emt 00:00:09]} Ke1 {[%clk 00:00:40]} {[%emt 00:00:02]} 119.
Qb1+ {[%clk 00:00:36]} {[%emt 00:00:27]} Qd1 {[%clk 00:00:48]} {[%emt
00:00:01]} 120. Qe4+ {[%clk 00:00:42]} {[%emt 00:00:04]} Qe2 {[%clk 00:00:40]}
{[%emt 00:00:19]} 121. Qb1+ {[%clk 00:00:51]} {[%emt 00:00:01]} Kd2 {[%clk
00:00:47]} {[%emt 00:00:03]} 122. Qb2+ {[%clk 00:00:59]} {[%emt 00:00:01]} Ke3
{[%clk 00:00:53]} {[%emt 00:00:05]} 123. Qe5+ {[%clk 00:01:07]} {[%emt
00:00:03]} Kd3 {[%clk 00:00:55]} {[%emt 00:00:08]} 124. Qb5+ {[%clk 00:01:15]}
{[%emt 00:00:02]} Kd2 {[%clk 00:01:00]} {[%emt 00:00:06]} 125. Qb2+ {[%clk
00:01:23]} {[%emt 00:00:02]} 1/2-1/2

[Event "NK 2022"]
[Site "Groningen, Netherlands"]
[Date "2022.12.28"]
[Round "13.1"]
[White "Kevlishvili, Robby"]
[Black "Warmerdam, Max"]
[Result "0-1"]
[TimeControl "40/90; 30 minutes + increment 30 seconds from start"]
[WhiteTitle "GM"]
[BlackTitle "GM"]
[WhiteFideId "1040634"]
[BlackFideId "1048104"]
[WhiteElo "2530"]
[BlackElo "2619"]

1. e4 {[%clk 00:10:18]} {[%emt 00:00:02]} c5 {[%clk 00:10:19]} {[%emt
00:00:01]} 2. Nf3 {[%clk 00:10:26]} {[%emt 00:00:01]} d6 {[%clk 00:10:28]}
{[%emt 00:00:01]} 3. c3 {[%clk 00:10:32]} {[%emt 00:00:04]} Nf6 {[%clk
00:10:37]} {[%emt 00:00:02]} 4. Be2 {[%clk 00:10:40]} {[%emt 00:00:02]} g6
{[%clk 00:10:43]} {[%emt 00:00:05]} 5. O-O {[%clk 00:10:46]} {[%emt 00:00:04]}
Bg7 {[%clk 00:10:51]} {[%emt 00:00:01]} 6. h3 {[%clk 00:10:50]} {[%emt
00:00:05]} O-O {[%clk 00:10:58]} {[%emt 00:00:04]} 7. d3 {[%clk 00:10:57]}
{[%emt 00:00:03]} Nc6 {[%clk 00:11:03]} {[%emt 00:00:05]} 8. Re1 {[%clk
00:11:05]} {[%emt 00:00:02]} e5 {[%clk 00:11:04]} {[%emt 00:00:09]} 9. Nbd2
{[%clk 00:11:10]} {[%emt 00:00:05]} d5 {[%clk 00:11:07]} {[%emt 00:00:07]} 10.
Bf1 {[%clk 00:11:14]} {[%emt 00:00:06]} h6 {[%clk 00:11:13]} {[%emt 00:00:03]}
11. a3 {[%clk 00:11:18]} {[%emt 00:00:06]} Be6 {[%clk 00:11:11]} {[%emt
00:00:12]} 12. b4 {[%clk 00:11:21]} {[%emt 00:00:07]} cxb4 {[%clk 00:10:22]}
{[%emt 00:00:59]} 13. axb4 {[%clk 00:11:26]} {[%emt 00:00:05]} a6 {[%clk
00:10:28]} {[%emt 00:00:03]} 14. Bb2 {[%clk 00:11:31]} {[%emt 00:00:05]} Rc8
{[%clk 00:10:27]} {[%emt 00:00:12]} 15. exd5 {[%clk 00:11:31]} {[%emt
00:00:10]} Nxd5 {[%clk 00:10:21]} {[%emt 00:00:15]} 16. Ne4 {[%clk 00:11:38]}
{[%emt 00:00:03]} Qc7 {[%clk 00:10:12]} {[%emt 00:00:19]} 17. Nc5 {[%clk
00:11:40]} {[%emt 00:00:07]} Bf5 {[%clk 00:10:18]} {[%emt 00:00:04]} 18. Nh4
{[%clk 00:11:40]} {[%emt 00:00:10]} Bd7 {[%clk 00:10:21]} {[%emt 00:00:08]} 19.
Qb3 {[%clk 00:11:47]} {[%emt 00:00:04]} Nf4 {[%clk 00:10:19]} {[%emt 00:00:12]}
20. Bc1 {[%clk 00:10:55]} {[%emt 00:01:02]} Ne6 {[%clk 00:09:53]} {[%emt
00:00:36]} 21. Nxd7 {[%clk 00:10:38]} {[%emt 00:00:27]} Qxd7 {[%clk 00:10:01]}
{[%emt 00:00:02]} 22. Nf3 {[%clk 00:10:38]} {[%emt 00:00:10]} Rfd8 {[%clk
00:10:07]} {[%emt 00:00:03]} 23. Bb2 {[%clk 00:10:45]} {[%emt 00:00:04]} Nf4
{[%clk 00:10:10]} {[%emt 00:00:07]} 24. Rad1 {[%clk 00:10:53]} {[%emt
00:00:02]} Qf5 {[%clk 00:10:16]} {[%emt 00:00:04]} 25. Nh4 {[%clk 00:10:53]}
{[%emt 00:00:10]} Qh5 {[%clk 00:08:52]} {[%emt 00:01:35]} 26. g3 {[%clk
00:11:01]} {[%emt 00:00:02]} Bf6 {[%clk 00:08:53]} {[%emt 00:00:09]} 27. gxf4
{[%clk 00:09:32]} {[%emt 00:01:38]} Bxh4 {[%clk 00:08:58]} {[%emt 00:00:05]} 28.
Bc1 {[%clk 00:08:46]} {[%emt 00:00:57]} Qf5 {[%clk 00:07:28]} {[%emt 00:01:40]}
29. Re4 {[%clk 00:08:15]} {[%emt 00:00:41]} g5 {[%clk 00:07:36]} {[%emt
00:00:02]} 30. Be2 {[%clk 00:06:53]} {[%emt 00:01:31]} gxf4 {[%clk 00:06:36]}
{[%emt 00:01:10]} 31. Bg4 {[%clk 00:06:35]} {[%emt 00:00:28]} Qg6 {[%clk
00:06:44]} {[%emt 00:00:02]} 32. Kf1 {[%clk 00:05:11]} {[%emt 00:01:33]} Kh8
{[%clk 00:06:00]} {[%emt 00:00:54]} 33. Bxc8 {[%clk 00:04:47]} {[%emt
00:00:34]} Rxc8 {[%clk 00:06:09]} {[%emt 00:00:01]} 34. Bxf4 {[%clk 00:04:19]}
{[%emt 00:00:38]} exf4 {[%clk 00:06:02]} {[%emt 00:00:17]} 35. Rxf4 {[%clk
00:04:27]} {[%emt 00:00:02]} Bf6 {[%clk 00:05:30]} {[%emt 00:00:42]} 36. d4
{[%clk 00:04:36]} {[%emt 00:00:02]} Rd8 {[%clk 00:02:18]} {[%emt 00:03:22]} 37.
b5 {[%clk 00:04:14]} {[%emt 00:00:32]} axb5 {[%clk 00:02:27]} {[%emt 00:00:01]}
38. Qxb5 {[%clk 00:04:18]} {[%emt 00:00:05]} Bg5 {[%clk 00:02:29]} {[%emt
00:00:08]} 39. Rf3 {[%clk 00:04:19]} {[%emt 00:00:09]} Qe4 {[%clk 00:01:40]}
{[%emt 00:00:59]} 40. Qf5 {[%clk 00:04:16]} {[%emt 00:00:13]} Qxf5 {[%clk
00:01:48]} {[%emt 00:00:02]} 41. Rxf5 {[%clk 00:04:24]} {[%emt 00:00:01]} Rd7
{[%clk 00:01:57]} {[%emt 00:00:01]} 42. Rb5 {[%clk 00:04:22]} {[%emt 00:00:13]}
Bd8 {[%clk 00:01:49]} {[%emt 00:00:18]} 43. Rdb1 {[%clk 00:04:18]} {[%emt
00:00:14]} b6 {[%clk 00:01:49]} {[%emt 00:00:10]} 44. Ke2 {[%clk 00:04:22]}
{[%emt 00:00:06]} Rd6 {[%clk 00:01:32]} {[%emt 00:00:27]} 45. Kd3 {[%clk
00:03:17]} {[%emt 00:01:15]} Kg7 {[%clk 00:01:41]} {[%emt 00:00:01]} 46. Rf5
{[%clk 00:03:12]} {[%emt 00:00:15]} Ne7 {[%clk 00:01:47]} {[%emt 00:00:04]} 47.
Rf3 {[%clk 00:03:02]} {[%emt 00:00:20]} Ng6 {[%clk 00:01:52]} {[%emt 00:00:06]}
48. Kc4 {[%clk 00:03:07]} {[%emt 00:00:05]} Kf8 {[%clk 00:01:26]} {[%emt
00:00:35]} 49. Ra1 {[%clk 00:03:03]} {[%emt 00:00:14]} Nh4 {[%clk 00:01:29]}
{[%emt 00:00:07]} 50. Rf4 {[%clk 00:03:09]} {[%emt 00:00:04]} Ng6 {[%clk
00:01:22]} {[%emt 00:00:17]} 51. Rf5 {[%clk 00:03:12]} {[%emt 00:00:06]} Rc6+
{[%clk 00:01:24]} {[%emt 00:00:08]} 52. Kd3 {[%clk 00:03:10]} {[%emt 00:00:12]}
Nh4 {[%clk 00:01:13]} {[%emt 00:00:22]} 53. Rd5 {[%clk 00:02:09]} {[%emt
00:01:10]} Bc7 {[%clk 00:01:12]} {[%emt 00:00:11]} 54. Ra8+ {[%clk 00:02:11]}
{[%emt 00:00:08]} Ke7 {[%clk 00:00:57]} {[%emt 00:00:24]} 55. Rc8 {[%clk
00:02:20]} {[%emt 00:00:01]} Ng6 {[%clk 00:00:53]} {[%emt 00:00:15]} 56. Rf5
{[%clk 00:02:16]} {[%emt 00:00:14]} Kd7 {[%clk 00:01:01]} {[%emt 00:00:02]} 57.
Ra8 {[%clk 00:01:40]} {[%emt 00:00:46]} Ke7 {[%clk 00:00:21]} {[%emt 00:00:50]}
58. Ra7 {[%clk 00:01:36]} {[%emt 00:00:14]} Ke8 {[%clk 00:00:20]} {[%emt
00:00:11]} 59. Kc2 {[%clk 00:01:20]} {[%emt 00:00:26]} Ne7 {[%clk 00:00:19]}
{[%emt 00:00:11]} 60. Rh5 {[%clk 00:01:24]} {[%emt 00:00:06]} Bd8 {[%clk
00:00:24]} {[%emt 00:00:05]} 61. Kb3 {[%clk 00:01:29]} {[%emt 00:00:04]} Rf6
{[%clk 00:00:30]} {[%emt 00:00:05]} 62. Rh4 {[%clk 00:01:13]} {[%emt 00:00:27]}
Re6 {[%clk 00:00:17]} {[%emt 00:00:23]} 63. c4 {[%clk 00:00:59]} {[%emt
00:00:23]} Nc6 {[%clk 00:00:23]} {[%emt 00:00:04]} 64. Ra8 {[%clk 00:01:08]}
{[%emt 00:00:01]} Na5+ {[%clk 00:00:26]} {[%emt 00:00:07]} 65. Kc3 {[%clk
00:01:02]} {[%emt 00:00:16]} Rf6 {[%clk 00:00:23]} {[%emt 00:00:13]} 66. c5
{[%clk 00:00:40]} {[%emt 00:00:32]} Rf3+ {[%clk 00:00:32]} {[%emt 00:00:01]} 67.
Kb4 {[%clk 00:00:38]} {[%emt 00:00:12]} Rb3+ {[%clk 00:00:39]} {[%emt
00:00:03]} 0-1